[Event "European Online Club-ch-I 2021"]
[Site "Online"]
[Date "2021.03.27"]
[Round "8.19"]
[White "Mammadzada, Gunay"]
[Black "Bulmaga, Irina"]
[Result "1-0"]
[ECO "B90"]
[WhiteElo "2443"]
[BlackElo "2440"]
[Annotator "NA"]
[PlyCount "111"]
[EventDate "2021.03.27"]
[EventType "team-tourn"]
[EventCountry "NET"]
[SourceTitle "playchess.com"]
[Source "ChessBase"]
[SourceQuality "1"]
[TimeControl "900+5"]

1. e4 {[%emt 0:00:00]} c5 {[%emt 0:00:03]} 2. Nf3 {[%emt 0:00:03]} d6 {[%emt 0:00:01]} 3. d4 {[%emt 0:00:01]} cxd4 {[%emt 0:00:00]} 4. Nxd4 {[%emt 0:00:01]} Nf6 {[%emt 0:00:01]} 5. Nc3 {[%emt 0:00:02]} a6 {[%emt 0:00:01]} 6. Be3 {[%emt 0:00:03]} e5 {[%emt 0:00:03]} 7. Nb3 {[%emt 0:00:02]} Be6 {[%emt 0:00:02]} 8. Qd2 {[%emt 0:00:02]} Nbd7 {[%emt 0:00:04]} 9. O-O-O {[%emt 0:00:02]} b5 {[%emt 0:00:16]} 10. f4 {[%emt 0:00:03]} Be7 {[%emt 0:00:04]} 11. h3 {[%emt 0:00:48]} O-O {[%emt 0:01:07]} 12. f5 {[%emt 0:01:01]} Bc4 {[%emt 0:01:22]} 13. g4 {[%emt 0:00:16]} Bxf1 {[%emt 0:00:12]} 14. Rhxf1 {[%emt 0:01:08]} b4 {[%emt 0:00:05]} 15. Nd5 {[%emt 0:02:19]} Nxd5 {[%emt 0:00:04]} 16. exd5 {[%emt 0:00:12]} a5 {[%emt 0:00:20]} 17. Kb1 {[%emt 0:00:12]} a4 {[%emt 0:00:22]} 18. Nc1 {[%emt 0:00:01]} Qa5 {[%emt 0:00:40]} 19. g5 {[%emt 0:00:20]} Bd8 {[%emt 0:00:21]} 20. Nd3 {[%emt 0:04:32]} Bb6 {[%emt 0:01:18]} 21. Bxb6 {[%emt 0:00:40]} Nxb6 {[%emt 0:00:06]} 22. Nxb4 {[%emt 0:02:00]} Nc4 {[%emt 0:02:33]} 23. Qe1 {[%emt 0:00:02]} Ne3 {[%emt 0:02:06]} 24. Qxe3 {[%emt 0:00:29]} Qxb4 {[%emt 0:00:02]} 25. c3 {[%emt 0:00:45]} Qb5 {[%emt 0:00:21]} 26. Qd3 {[%emt 0:00:04]} Qc5 {[%emt 0:00:16]} 27. g6 {[%emt 0:00:20]} f6 {[%emt 0:01:49]} 28. gxh7+ {[%emt 0:00:16]} Kh8 {[%emt 0:00:02]} 29. Rd2 {[%emt 0:00:34]} Rfb8 {[%emt 0:00:18]} 30. Ka1 {[%emt 0:00:28]} Rc8 {[%emt 0:00:43]} 31. Rc2 {[%emt 0:00:08]} Qc4 {[%emt 0:00:48]} 32. Qf3 {[%emt 0:00:09]} Ra5 {[%emt 0:00:15]} 33. Rd1 {[%emt 0:00:04]} Rcc5 {[%emt 0:00:47]} 34. Qh5 {[%emt 0:00:25]} Rc8 {[%emt 0:00:56]} 35. Qf7 {[%emt 0:00:06]} Qh4 {[%emt 0:00:18]} 36. Rg1 {[%emt 0:00:09]} Qxh7 {[%emt 0:00:03]} 37. Rcg2 {[%emt 0:00:04]} Rg8 {[%emt 0:00:04]} 38. Rg4 {[%emt 0:00:11]} Raa8 {[%emt 0:00:05]} 39. Qe7 {[%emt 0:00:06]} Rad8 {[%emt 0:00:05]} 40. Rxg7 {[%emt 0:00:04]} Qh6 {[%emt 0:00:11]} 41. a3 {[%emt 0:00:07]} Rxg7 {[%emt 0:00:03]} 42. Qxd8+ {[%emt 0:00:01]} Kh7 {[%emt 0:00:01]} 43. Rxg7+ {[%emt 0:00:05]} Qxg7 {[%emt 0:00:06]} 44. Qxd6 {[%emt 0:00:03]} Qg1+ {[%emt 0:00:03]} 45. Ka2 {[%emt 0:00:02]} Qf1 {[%emt 0:00:03]} 46. Qe7+ {[%emt 0:00:06]} Kg8 {[%emt 0:00:02]} 47. Qe8+ {[%emt 0:00:02]} Kg7 {[%emt 0:00:01]} 48. Qg6+ {[%emt 0:00:02]} Kh8 {[%emt 0:00:02]} 49. Qxf6+ {[%emt 0:00:01]} Kh7 {[%emt 0:00:01]} 50. Qh4+ {[%emt 0:00:06]} Kg7 {[%emt 0:00:09]} 51. Qxa4 {[%emt 0:00:03]} Qxf5 {[%emt 0:00:02]} 52. Qg4+ {[%emt 0:00:15]} Kf6 {[%emt 0:00:04]} 53. Qxf5+ {[%emt 0:00:13]} Kxf5 {[%emt 0:00:00]} 54. Kb3 {[%emt 0:00:01]} e4 {[%emt 0:00:06]} 55. d6 {[%emt 0:00:05]} e3 {[%emt 0:00:07]} 56. Kc2 {[%emt 0:00:05]} 1-0

[Event "European Online Club-ch-I 2021"]
[Site "Online"]
[Date "2021.03.27"]
[Round "8.20"]
[White "Daulyte-Cornette, Deimante"]
[Black "Bashirli, Nail"]
[Result "1/2-1/2"]
[ECO "B04"]
[WhiteElo "2387"]
[BlackElo "2382"]
[Annotator "NA"]
[PlyCount "80"]
[EventDate "2021.03.27"]
[EventType "team-tourn"]
[EventCountry "NET"]
[SourceTitle "playchess.com"]
[Source "ChessBase"]
[SourceQuality "1"]
[TimeControl "900+5"]

1. e4 {[%emt 0:00:00]} Nf6 {[%emt 0:00:11]} 2. e5 {[%emt 0:00:33]} Nd5 {[%emt 0:00:03]} 3. d4 {[%emt 0:00:01]} d6 {[%emt 0:00:02]} 4. c4 {[%emt 0:00:04]} Nb6 {[%emt 0:00:02]} 5. exd6 {[%emt 0:00:01]} cxd6 {[%emt 0:00:01]} 6. Nc3 {[%emt 0:00:03]} g6 {[%emt 0:00:01]} 7. h3 {[%emt 0:00:03]} Bg7 {[%emt 0:00:02]} 8. Nf3 {[%emt 0:00:02]} O-O {[%emt 0:00:01]} 9. Be2 {[%emt 0:00:06]} Nc6 {[%emt 0:00:30]} 10. O-O {[%emt 0:00:09]} Bf5 {[%emt 0:00:03]} 11. Bg5 {[%emt 0:00:03]} h6 {[%emt 0:00:03]} 12. Be3 {[%emt 0:00:04]} Rc8 {[%emt 0:01:39]} 13. b3 {[%emt 0:00:34]} e5 {[%emt 0:01:23]} 14. Rc1 {[%emt 0:00:42]} Kh7 {[%emt 0:01:36]} 15. dxe5 {[%emt 0:00:31]} dxe5 {[%emt 0:00:19]} 16. Nb5 {[%emt 0:01:22]} e4 {[%emt 0:01:40]} 17. Nfd4 {[%emt 0:00:07]} Nxd4 {[%emt 0:00:07]} 18. Nxd4 {[%emt 0:00:11]} Qf6 {[%emt 0:02:41]} 19. c5 {[%emt 0:01:44]} Na8 {[%emt 0:00:27]} 20. Nb5 {[%emt 0:00:24]} Rfd8 {[%emt 0:01:16]} 21. Qe1 {[%emt 0:00:04]} Nc7 {[%emt 0:00:08]} 22. Nxa7 {[%emt 0:01:12]} Ra8 {[%emt 0:00:06]} 23. c6 {[%emt 0:00:14]} bxc6 {[%emt 0:00:06]} 24. Nxc6 {[%emt 0:00:14]} Rd6 {[%emt 0:00:10]} 25. Nd4 {[%emt 0:00:29]} Nd5 {[%emt 0:00:05]} 26. a4 {[%emt 0:00:48]} Bxh3 {[%emt 0:01:07]} 27. Nb5 {[%emt 0:03:24]} Nxe3 {[%emt 0:00:41]} 28. fxe3 {[%emt 0:00:01]} Qg5 {[%emt 0:00:03]} 29. Rf2 {[%emt 0:00:05]} Rd7 {[%emt 0:00:29]} 30. Bf1 {[%emt 0:00:35]} Be6 {[%emt 0:00:30]} 31. Nc7 {[%emt 0:00:31]} Be5 {[%emt 0:00:40]} 32. Nxa8 {[%emt 0:00:57]} Bg3 {[%emt 0:00:02]} 33. Bc4 {[%emt 0:00:42]} Qh4 {[%emt 0:00:32]} 34. Bxe6 {[%emt 0:00:17]} fxe6 {[%emt 0:00:17]} 35. Nb6 {[%emt 0:01:15]} Qh2+ {[%emt 0:00:25]} 36. Kf1 {[%emt 0:00:02]} Qh1+ {[%emt 0:00:01]} 37. Ke2 {[%emt 0:00:01]} Qh5+ {[%emt 0:00:01]} 38. Kf1 {[%emt 0:00:01]} Qh1+ {[%emt 0:00:21]} 39. Ke2 {[%emt 0:00:01]} Qh5+ {[%emt 0:00:01]} 40. Kf1 {[%emt 0:00:02]} Qh1+ {[%emt 0:00:03]} 1/2-1/2

[Event "European Online Club-ch-I 2021"]
[Site "Online"]
[Date "2021.03.27"]
[Round "9.1"]
[White "Batsiashvili, Nino"]
[Black "Ribbegren, Karl Johan"]
[Result "1-0"]
[ECO "E10"]
[WhiteElo "2491"]
[BlackElo "2185"]
[Annotator "ChessBase"]
[PlyCount "69"]
[EventDate "2021.03.27"]
[EventType "team-tourn"]
[EventCountry "NET"]
[SourceTitle "playchess.com"]
[Source "ChessBase"]
[SourceQuality "1"]
[TimeControl "900+5"]

1. d4 {[%emt 0:00:00]} Nf6 {[%emt 0:00:02]} 2. Nf3 {[%emt 0:00:03]} c5 {[%emt 0:00:14]} 3. d5 {[%emt 0:00:06]} e6 {[%emt 0:00:08]} 4. c4 {[%emt 0:00:04]} b5 {[%emt 0:00:02]} 5. dxe6 {[%emt 0:00:18]} fxe6 {[%emt 0:00:02]} 6. cxb5 {[%emt 0:00:02]} d5 {[%emt 0:00:05]} 7. Bg5 {[%emt 0:00:06]} Bd6 {[%emt 0:00:25]} 8. Nc3 {[%emt 0:00:16]} Bb7 {[%emt 0:00:03]} 9. e3 {[%emt 0:00:17]} O-O {[%emt 0:00:08]} 10. Be2 {[%emt 0:00:02]} Nbd7 {[%emt 0:00:03]} 11. a4 {[%emt 0:00:01]} Qe8 {[%emt 0:00:29]} 12. a5 {[%emt 0:00:09]} Rd8 {[%emt 0:00:04]} 13. b6 {[%emt 0:00:18]} axb6 {[%emt 0:01:00]} 14. a6 {[%emt 0:00:02]} Ba8 {[%emt 0:00:19]} 15. Nb5 {[%emt 0:00:03]} Ne5 {[%emt 0:00:59]} 16. Nxd6 {[%emt 0:01:04]} Nxf3+ {[%emt 0:00:04]} 17. Bxf3 {[%emt 0:00:02]} Rxd6 {[%emt 0:00:01]} 18. O-O {[%emt 0:00:11]} Qg6 {[%emt 0:00:32]} 19. Bf4 {[%emt 0:00:09]} Rd7 {[%emt 0:00:13]} 20. Qb3 {[%emt 0:00:02]} Ne4 {[%emt 0:00:17]} 21. Rfd1 {[%emt 0:00:39]} e5 {[%emt 0:00:46]} 22. Bxe4 {[%emt 0:00:42]} Qxe4 {[%emt 0:00:07]} 23. Bg3 {[%emt 0:00:32]} c4 {[%emt 0:00:18]} 24. Qxb6 {[%emt 0:00:02]} d4 {[%emt 0:01:01]} 25. Qe6+ {[%emt 0:00:21]} Rdf7 {[%emt 0:00:13]} 26. f3 {[%emt 0:00:10]} Qxe3+ {[%emt 0:00:18]} 27. Bf2 {[%emt 0:00:03]} Qg5 {[%emt 0:00:26]} 28. h4 {[%emt 0:00:02]} Qf4 {[%emt 0:00:11]} 29. Ra5 {[%emt 0:00:52]} e4 {[%emt 0:00:41]} 30. Rxd4 {[%emt 0:01:12]} Qc1+ {[%emt 0:00:07]} 31. Kh2 {[%emt 0:00:02]} exf3 {[%emt 0:00:18]} 32. Rg5 {[%emt 0:00:09]} Qf1 {[%emt 0:00:50]} 33. Rxg7+ {[%emt 0:00:57]} Kxg7 {[%emt 0:00:08]} 34. Rg4+ {[%emt 0:00:02]} Kh8 {[%emt 0:00:08]} 35. Bd4+ {[%emt 0:00:02]} 1-0

[Event "European Online Club-ch-I 2021"]
[Site "Online"]
[Date "2021.03.27"]
[Round "9.2"]
[White "Verdier, Patrice"]
[Black "Javakhishvili, Lela"]
[Result "0-1"]
[ECO "E20"]
[WhiteElo "2109"]
[BlackElo "2473"]
[Annotator "ChessBase"]
[PlyCount "70"]
[EventDate "2021.03.27"]
[EventType "team-tourn"]
[EventCountry "NET"]
[SourceTitle "playchess.com"]
[Source "ChessBase"]
[SourceQuality "1"]
[TimeControl "900+5"]

1. d4 {[%emt 0:00:00]} Nf6 {[%emt 0:00:04]} 2. c4 {[%emt 0:00:08]} e6 {[%emt 0:00:02]} 3. Nc3 {[%emt 0:00:05]} Bb4 {[%emt 0:00:06]} 4. f3 {[%emt 0:00:02]} O-O {[%emt 0:00:25]} 5. e4 {[%emt 0:00:12]} Bxc3+ {[%emt 0:00:31]} 6. bxc3 {[%emt 0:00:03]} d6 {[%emt 0:00:00]} 7. Bd3 {[%emt 0:00:14]} Nbd7 {[%emt 0:00:07]} 8. Ne2 {[%emt 0:00:07]} b6 {[%emt 0:00:02]} 9. O-O {[%emt 0:00:04]} Bb7 {[%emt 0:00:05]} 10. Ng3 {[%emt 0:00:13]} c5 {[%emt 0:00:07]} 11. f4 {[%emt 0:00:08]} Ne8 {[%emt 0:00:28]} 12. Qg4 {[%emt 0:01:05]} Kh8 {[%emt 0:00:20]} 13. Be3 {[%emt 0:01:18]} Rc8 {[%emt 0:00:14]} 14. Rad1 {[%emt 0:00:08]} Qe7 {[%emt 0:00:21]} 15. e5 {[%emt 0:00:16]} f5 {[%emt 0:00:16]} 16. exf6 {[%emt 0:00:22]} gxf6 {[%emt 0:00:43]} 17. f5 {[%emt 0:00:34]} e5 {[%emt 0:00:03]} 18. d5 {[%emt 0:00:05]} b5 {[%emt 0:00:23]} 19. cxb5 {[%emt 0:00:46]} Bxd5 {[%emt 0:00:09]} 20. c4 {[%emt 0:00:04]} Bb7 {[%emt 0:00:21]} 21. Be4 {[%emt 0:00:05]} Nb6 {[%emt 0:00:10]} 22. Rc1 {[%emt 0:00:22]} d5 {[%emt 0:01:27]} 23. cxd5 {[%emt 0:00:21]} Nxd5 {[%emt 0:00:04]} 24. Bxd5 {[%emt 0:00:34]} Bxd5 {[%emt 0:00:03]} 25. Ne4 {[%emt 0:00:08]} Rg8 {[%emt 0:00:23]} 26. Qh4 {[%emt 0:00:06]} Qb7 {[%emt 0:00:13]} 27. Ng3 {[%emt 0:00:37]} Bxg2 {[%emt 0:00:18]} 28. Rf2 {[%emt 0:00:12]} Bd5 {[%emt 0:00:09]} 29. a4 {[%emt 0:01:05]} c4 {[%emt 0:00:14]} 30. Rc3 {[%emt 0:00:35]} Qf7 {[%emt 0:00:37]} 31. Kf1 {[%emt 0:00:42]} Nd6 {[%emt 0:00:22]} 32. Rd2 {[%emt 0:00:04]} Rxg3 {[%emt 0:01:50]} 33. Rxd5 {[%emt 0:01:41]} Nxf5 {[%emt 0:02:06]} 34. Qe4 {[%emt 0:01:44]} Nxe3+ {[%emt 0:00:05]} 35. Rxe3 {[%emt 0:00:41]} Rxe3 {[%emt 0:00:04]} 0-1

[Event "European Online Club-ch-I 2021"]
[Site "Online"]
[Date "2021.03.27"]
[Round "9.3"]
[White "Bulmaga, Irina"]
[Black "Van Hoolandt, Patrick"]
[Result "1-0"]
[ECO "C45"]
[WhiteElo "2440"]
[BlackElo "2017"]
[Annotator "NA"]
[PlyCount "101"]
[EventDate "2021.03.27"]
[EventType "team-tourn"]
[EventCountry "NET"]
[SourceTitle "playchess.com"]
[Source "ChessBase"]
[SourceQuality "1"]
[TimeControl "900+5"]

1. e4 {[%emt 0:00:00]} e5 {[%emt 0:00:05]} 2. Nf3 {[%emt 0:00:05]} Nc6 {[%emt 0:00:02]} 3. d4 {[%emt 0:00:08]} exd4 {[%emt 0:00:03]} 4. Nxd4 {[%emt 0:00:02]} Nf6 {[%emt 0:00:03]} 5. Nxc6 {[%emt 0:00:05]} bxc6 {[%emt 0:00:00]} 6. Qe2 {[%emt 0:00:04]} Qe7 {[%emt 0:00:15]} 7. Nc3 {[%emt 0:00:18]} a5 {[%emt 0:00:21]} 8. Bg5 {[%emt 0:00:26]} Ba6 {[%emt 0:00:15]} 9. Qf3 {[%emt 0:00:06]} Bxf1 {[%emt 0:00:11]} 10. Rxf1 {[%emt 0:00:52]} Qe5 {[%emt 0:01:09]} 11. Bxf6 {[%emt 0:00:53]} gxf6 {[%emt 0:00:07]} 12. O-O-O {[%emt 0:00:18]} Bb4 {[%emt 0:01:12]} 13. Rd3 {[%emt 0:00:14]} d6 {[%emt 0:00:21]} 14. Ne2 {[%emt 0:01:16]} Rb8 {[%emt 0:00:13]} 15. c3 {[%emt 0:00:11]} Bc5 {[%emt 0:00:10]} 16. Ng3 {[%emt 0:00:07]} a4 {[%emt 0:00:29]} 17. Qg4 {[%emt 0:01:05]} a3 {[%emt 0:00:16]} 18. b3 {[%emt 0:00:22]} h5 {[%emt 0:01:23]} 19. Qg7 {[%emt 0:00:33]} Qg5+ {[%emt 0:01:57]} 20. Qxg5 {[%emt 0:00:03]} fxg5 {[%emt 0:00:00]} 21. h3 {[%emt 0:00:01]} f6 {[%emt 0:00:26]} 22. Kc2 {[%emt 0:00:10]} Kf7 {[%emt 0:00:50]} 23. b4 {[%emt 0:00:35]} Bb6 {[%emt 0:00:03]} 24. Kb3 {[%emt 0:00:31]} Ra8 {[%emt 0:00:19]} 25. Nf5 {[%emt 0:00:53]} Rhe8 {[%emt 0:00:12]} 26. f3 {[%emt 0:00:21]} h4 {[%emt 0:00:19]} 27. c4 {[%emt 0:00:51]} c5 {[%emt 0:00:19]} 28. b5 {[%emt 0:00:16]} Reb8 {[%emt 0:02:48]} 29. Rb1 {[%emt 0:00:28]} Ke6 {[%emt 0:00:23]} 30. Kc2 {[%emt 0:00:34]} Rb7 {[%emt 0:00:04]} 31. Rbb3 {[%emt 0:00:11]} Ra4 {[%emt 0:00:05]} 32. Ne3 {[%emt 0:00:13]} Rba7 {[%emt 0:00:05]} 33. Rd5 {[%emt 0:00:14]} R7a5 {[%emt 0:00:20]} 34. Kd3 {[%emt 0:00:20]} Ra8 {[%emt 0:00:03]} 35. Rf5 {[%emt 0:00:09]} Rb4 {[%emt 0:00:39]} 36. Kc3 {[%emt 0:01:24]} Raa4 {[%emt 0:00:08]} 37. f4 {[%emt 0:02:04]} Ba5 {[%emt 0:00:04]} 38. Kc2 {[%emt 0:00:19]} gxf4 {[%emt 0:00:07]} 39. Rxf4 {[%emt 0:00:11]} Bb6 {[%emt 0:01:03]} 40. Rxh4 {[%emt 0:00:06]} Rxc4+ {[%emt 0:00:14]} 41. Nxc4 {[%emt 0:00:05]} Rxc4+ {[%emt 0:00:01]} 42. Rc3 {[%emt 0:00:19]} Rb4 {[%emt 0:00:12]} 43. Rxa3 {[%emt 0:00:02]} Rxb5 {[%emt 0:00:06]} 44. Rg4 {[%emt 0:00:02]} c4 {[%emt 0:00:11]} 45. Kc3 {[%emt 0:00:15]} Rc5 {[%emt 0:00:05]} 46. Kb4 {[%emt 0:00:16]} Rc6 {[%emt 0:00:06]} 47. Rc3 {[%emt 0:00:15]} d5 {[%emt 0:00:02]} 48. exd5+ {[%emt 0:00:03]} Kxd5 {[%emt 0:00:02]} 49. Rgxc4 {[%emt 0:00:05]} Ba5+ {[%emt 0:00:03]} 50. Kb5 {[%emt 0:00:06]} Bxc3 {[%emt 0:00:37]} 51. Rxc6 {[%emt 0:00:03]} 1-0

[Event "European Online Club-ch-I 2021"]
[Site "Online"]
[Date "2021.03.27"]
[Round "9.4"]
[White "Meylan, Pierre"]
[Black "Atalik, Ekaterina"]
[Result "1/2-1/2"]
[ECO "B18"]
[WhiteElo "2053"]
[BlackElo "2430"]
[Annotator "NA"]
[PlyCount "80"]
[EventDate "2021.03.27"]
[EventType "team-tourn"]
[EventCountry "NET"]
[SourceTitle "playchess.com"]
[Source "ChessBase"]
[SourceQuality "1"]
[TimeControl "900+5"]

1. e4 {[%emt 0:00:00]} c6 {[%emt 0:00:03]} 2. d4 {[%emt 0:00:04]} d5 {[%emt 0:00:02]} 3. Nd2 {[%emt 0:00:02]} dxe4 {[%emt 0:00:02]} 4. Nxe4 {[%emt 0:00:03]} Bf5 {[%emt 0:00:01]} 5. Ng3 {[%emt 0:00:03]} Bg6 {[%emt 0:00:02]} 6. Nf3 {[%emt 0:00:04]} e6 {[%emt 0:00:02]} 7. Bd3 {[%emt 0:00:14]} Nf6 {[%emt 0:00:05]} 8. O-O {[%emt 0:00:05]} Be7 {[%emt 0:00:02]} 9. c4 {[%emt 0:00:13]} Bxd3 {[%emt 0:00:10]} 10. Qxd3 {[%emt 0:00:05]} O-O {[%emt 0:00:16]} 11. b3 {[%emt 0:01:01]} c5 {[%emt 0:00:06]} 12. Bb2 {[%emt 0:00:08]} Nc6 {[%emt 0:00:02]} 13. Rfd1 {[%emt 0:00:39]} cxd4 {[%emt 0:00:16]} 14. Nxd4 {[%emt 0:00:08]} Nxd4 {[%emt 0:00:02]} 15. Bxd4 {[%emt 0:00:44]} Qc7 {[%emt 0:00:03]} 16. Qe3 {[%emt 0:00:49]} b6 {[%emt 0:00:22]} 17. Ne4 {[%emt 0:01:30]} Nxe4 {[%emt 0:00:26]} 18. Qxe4 {[%emt 0:00:04]} Rfd8 {[%emt 0:00:57]} 19. Be5 {[%emt 0:01:07]} Qc5 {[%emt 0:00:48]} 20. Bd4 {[%emt 0:00:40]} Qc7 {[%emt 0:00:23]} 21. Be5 {[%emt 0:00:04]} Rxd1+ {[%emt 0:00:04]} 22. Rxd1 {[%emt 0:00:05]} Rd8 {[%emt 0:00:21]} 23. Rxd8+ {[%emt 0:01:18]} Qxd8 {[%emt 0:00:04]} 24. Qd4 {[%emt 0:00:04]} Qxd4 {[%emt 0:00:10]} 25. Bxd4 {[%emt 0:00:05]} f6 {[%emt 0:00:12]} 26. f3 {[%emt 0:01:20]} Kf7 {[%emt 0:00:27]} 27. Kf2 {[%emt 0:00:03]} e5 {[%emt 0:00:03]} 28. Be3 {[%emt 0:00:08]} Ke6 {[%emt 0:00:02]} 29. Ke2 {[%emt 0:00:05]} f5 {[%emt 0:00:04]} 30. Kd3 {[%emt 0:00:04]} Bc5 {[%emt 0:00:41]} 31. Bc1 {[%emt 0:00:38]} h5 {[%emt 0:00:21]} 32. a3 {[%emt 0:00:21]} g6 {[%emt 0:00:39]} 33. b4 {[%emt 0:00:19]} Bg1 {[%emt 0:00:24]} 34. h3 {[%emt 0:00:03]} Bf2 {[%emt 0:00:44]} 35. Be3 {[%emt 0:00:19]} Bxe3 {[%emt 0:00:56]} 36. Kxe3 {[%emt 0:00:05]} h4 {[%emt 0:00:13]} 37. Kd3 {[%emt 0:00:10]} g5 {[%emt 0:00:23]} 38. Ke3 {[%emt 0:00:09]} Kd6 {[%emt 0:01:02]} 39. Kd3 {[%emt 0:00:07]} Kc6 {[%emt 0:00:12]} 40. Ke3 {[%emt 0:00:10]} Kd6 {[%emt 0:00:44]} 1/2-1/2

[Event "European Online Club-ch-I 2021"]
[Site "Online"]
[Date "2021.03.27"]
[Round "9.5"]
[White "Arnaudov, G. Petar"]
[Black "Iskandarov, Misratdin"]
[Result "1/2-1/2"]
[ECO "D02"]
[WhiteElo "2471"]
[BlackElo "2535"]
[Annotator "ChessBase"]
[PlyCount "123"]
[EventDate "2021.03.27"]
[EventType "team-tourn"]
[EventCountry "NET"]
[SourceTitle "playchess.com"]
[Source "ChessBase"]
[SourceQuality "1"]
[TimeControl "900+5"]

1. d4 {[%emt 0:00:00]} Nf6 {[%emt 0:00:05]} 2. Nf3 {[%emt 0:00:02]} g6 {[%emt 0:00:06]} 3. Nbd2 {[%emt 0:00:03]} d5 {[%emt 0:00:04]} 4. b4 {[%emt 0:00:02]} Bg7 {[%emt 0:00:04]} 5. e3 {[%emt 0:00:02]} O-O {[%emt 0:00:02]} 6. c4 {[%emt 0:00:01]} a5 {[%emt 0:00:31]} 7. b5 {[%emt 0:00:03]} c5 {[%emt 0:00:50]} 8. dxc5 {[%emt 0:00:06]} Nbd7 {[%emt 0:01:13]} 9. Bb2 {[%emt 0:00:08]} Nxc5 {[%emt 0:00:06]} 10. Be2 {[%emt 0:00:06]} Bf5 {[%emt 0:00:12]} 11. O-O {[%emt 0:00:06]} Nd3 {[%emt 0:00:07]} 12. Bd4 {[%emt 0:00:05]} Rc8 {[%emt 0:00:26]} 13. Qb3 {[%emt 0:00:30]} Nc5 {[%emt 0:02:09]} 14. Qa3 {[%emt 0:00:04]} Nfe4 {[%emt 0:01:00]} 15. Rfd1 {[%emt 0:01:47]} Bxd4 {[%emt 0:03:00]} 16. Nxd4 {[%emt 0:00:07]} Nxd2 {[%emt 0:00:01]} 17. Rxd2 {[%emt 0:00:07]} dxc4 {[%emt 0:00:27]} 18. Bxc4 {[%emt 0:01:35]} Ne4 {[%emt 0:00:05]} 19. Rdd1 {[%emt 0:00:14]} Qb6 {[%emt 0:01:01]} 20. Nxf5 {[%emt 0:00:35]} gxf5 {[%emt 0:00:03]} 21. Bd3 {[%emt 0:00:16]} Nd6 {[%emt 0:00:03]} 22. Qa4 {[%emt 0:00:16]} Qc5 {[%emt 0:00:41]} 23. Qh4 {[%emt 0:00:12]} Qe5 {[%emt 0:00:02]} 24. b6 {[%emt 0:00:56]} Kh8 {[%emt 0:00:06]} 25. Rab1 {[%emt 0:00:59]} Rg8 {[%emt 0:00:11]} 26. Qd4 {[%emt 0:00:32]} Qxd4 {[%emt 0:00:16]} 27. exd4 {[%emt 0:00:03]} Kg7 {[%emt 0:00:01]} 28. g3 {[%emt 0:00:02]} Kg6 {[%emt 0:00:01]} 29. Kg2 {[%emt 0:00:02]} Kf6 {[%emt 0:00:03]} 30. Rbc1 {[%emt 0:00:17]} Rgd8 {[%emt 0:00:33]} 31. Kf3 {[%emt 0:00:05]} Rxc1 {[%emt 0:00:30]} 32. Rxc1 {[%emt 0:00:03]} Nc8 {[%emt 0:00:04]} 33. Rc5 {[%emt 0:00:44]} e6 {[%emt 0:00:26]} 34. Rxa5 {[%emt 0:00:06]} Rxd4 {[%emt 0:00:08]} 35. Ba6 {[%emt 0:00:08]} Nd6 {[%emt 0:00:34]} 36. Be2 {[%emt 0:00:16]} Rb4 {[%emt 0:00:02]} 37. Ra8 {[%emt 0:00:15]} Rxb6 {[%emt 0:00:04]} 38. a4 {[%emt 0:00:09]} Ne4 {[%emt 0:00:22]} 39. Bb5 {[%emt 0:00:15]} Nc3 {[%emt 0:00:09]} 40. Bf1 {[%emt 0:01:22]} Rb3 {[%emt 0:00:04]} 41. Kg2 {[%emt 0:00:07]} Rb2 {[%emt 0:00:11]} 42. Kf3 {[%emt 0:00:06]} Ne4 {[%emt 0:00:22]} 43. Be2 {[%emt 0:00:08]} e5 {[%emt 0:00:05]} 44. a5 {[%emt 0:00:38]} Ng5+ {[%emt 0:00:15]} 45. Ke3 {[%emt 0:00:04]} f4+ {[%emt 0:00:02]} 46. gxf4 {[%emt 0:00:04]} exf4+ {[%emt 0:00:01]} 47. Kd3 {[%emt 0:00:19]} f3 {[%emt 0:00:06]} 48. Bd1 {[%emt 0:00:03]} Nh3 {[%emt 0:00:52]} 49. Ke3 {[%emt 0:00:32]} Ra2 {[%emt 0:00:31]} 50. Kxf3 {[%emt 0:00:25]} Nxf2 {[%emt 0:00:05]} 51. Be2 {[%emt 0:00:02]} Nh3 {[%emt 0:00:03]} 52. Bc4 {[%emt 0:00:13]} Ra3+ {[%emt 0:00:04]} 53. Ke4 {[%emt 0:00:10]} Ng5+ {[%emt 0:00:23]} 54. Kd5 {[%emt 0:00:25]} Ne6 {[%emt 0:00:07]} 55. Kd6 {[%emt 0:00:04]} Rc3 {[%emt 0:00:09]} 56. Rc8 {[%emt 0:00:26]} Nd4 {[%emt 0:00:18]} 57. Rc7 {[%emt 0:00:11]} Nf5+ {[%emt 0:00:07]} 58. Kd7 {[%emt 0:00:19]} Ra3 {[%emt 0:00:04]} 59. Rc5 {[%emt 0:00:30]} Rc3 {[%emt 0:00:01]} 60. Rc7 {[%emt 0:00:21]} Ra3 {[%emt 0:00:09]} 61. Rc5 {[%emt 0:00:07]} Rc3 {[%emt 0:00:03]} 62. Rc7 {[%emt 0:00:02]} 1/2-1/2